fUST/lending_fUST_20250715
["ID","MTS","AMOUNT","RATE_DAILY","PERIOD"]
[372274147,1752570662321,-819.29,0.00021369,2]
[372274148,1752570662331,-460.0,0.00021369,2]
[372274149,1752570662340,-460.0,0.00021369,2]
[372274150,1752570662350,-500.0,0.0002137,2]
[372274151,1752570662361,-3250.65755656,0.00021375,2]
[372274152,1752570662370,-1500.0,0.00021416,2]
[372274153,1752570662379,-407.0,0.00021439,2]
[372274154,1752570662389,-429.0948676,0.00021507,2]
[372274155,1752570662398,-429.0948676,0.00021507,2]
[372274156,1752570662407,-429.0948676,0.00021507,2]
[372274157,1752570662417,-3000.0,0.00021512,2]
[372274158,1752570662427,-460.0,0.00021552,2]
[372274159,1752570662437,-10591.72515431,0.00021555,5]
[372274160,1752570662448,-151.0,0.00021633,2]
[372274161,1752570662458,-25000.0,0.00021633,2]
[372274162,1752570662468,-460.0,0.00021643,2]
[372274163,1752570662477,-460.0,0.00021643,2]
[372274164,1752570662487,-565.75,0.00021643,2]
[372274165,1752570662497,-518.56,0.00021643,2]
[372274166,1752570662506,-460.0,0.00021643,2]
[372274167,1752570662516,-460.0,0.00021643,2]
[372274168,1752570662525,-460.0,0.00021643,2]
[372274169,1752570662535,-929.48,0.00021643,2]
[372274170,1752570662544,-504.33546279,0.00021643,2]
[372274171,1752570662554,-460.0,0.00021643,2]
[372274172,1752570662563,-460.0,0.00021643,2]
[372274173,1752570662573,-541.79,0.00021643,2]
[372274174,1752570662582,-460.0,0.00021643,2]
[372274175,1752570662592,-596.49875175,0.00021643,2]
[372274176,1752570662601,-460.0,0.00021643,2]
[372274177,1752570662611,-460.0,0.00021643,2]
[372274178,1752570662620,-524.06,0.00021643,2]
[372274179,1752570662630,-734.04,0.00021643,2]
[372274180,1752570662640,-460.0,0.00021643,2]
[372274181,1752570662650,-542.32,0.00021643,2]
[372274182,1752570662659,-460.0,0.00021643,2]
[372274183,1752570662669,-804.19,0.00021643,2]
[372274184,1752570662679,-898.07,0.00021643,2]
[372274185,1752570662690,-460.0,0.00021643,2]
[372274186,1752570662700,-460.0,0.00021643,2]
[372274187,1752570662710,-898.31,0.00021643,2]
[372274188,1752570662720,-460.0,0.00021643,2]
[372274189,1752570662729,-891.43,0.00021643,2]
[372274190,1752570662739,-460.0,0.00021643,2]
[372274191,1752570662749,-460.0,0.00021643,2]
[372274192,1752570662759,-460.0,0.00021643,2]
[372274193,1752570662768,-470.67,0.00021643,2]
[372274194,1752570662778,-471.48,0.00021643,2]
[372274195,1752570662787,-460.0,0.00021643,2]
[372274196,1752570662797,-460.0,0.00021643,2]
[372274197,1752570662807,-460.0,0.00021643,2]
[372274198,1752570662817,-460.0,0.00021643,2]
[372274199,1752570662826,-460.0,0.00021643,2]
[372274200,1752570662836,-460.0,0.00021643,2]
[372274201,1752570662846,-1355.61,0.00021643,2]
[372274202,1752570662856,-460.0,0.00021643,2]
[372274203,1752570662865,-460.0,0.00021643,2]
[372274204,1752570662875,-460.0,0.00021643,2]
[372274205,1752570662884,-1420.46,0.00021643,2]
[372274206,1752570662893,-669.96,0.00021643,2]
[372274207,1752570662902,-460.0,0.00021643,2]
[372274208,1752570662912,-460.0,0.00021643,2]
[372274209,1752570662922,-228.54568651,0.00021643,2]
[372274210,1752570662932,-730.02,0.00021643,2]
[372274211,1752570662942,-460.0,0.00021643,2]
[372274212,1752570662952,-460.0,0.00021643,2]
[372274213,1752570662962,-2209.63,0.00021643,2]
[372274214,1752570662971,-862.35,0.00021643,2]
[372274215,1752570662984,-460.0,0.00021643,2]
[372274216,1752570662994,-566.25,0.00021643,2]
[372274217,1752570663003,-460.0,0.00021643,2]
[372274218,1752570663012,-524.72,0.00021643,2]
[372274219,1752570663128,-460.0,0.00021643,2]
[372274220,1752570663138,-460.0,0.00021643,2]
[372274221,1752570663147,-460.0,0.00021643,2]
[372274222,1752570663157,-1374.95,0.00021643,2]
[372274223,1752570663167,-1370.99,0.00021643,2]
[372274224,1752570663177,-460.0,0.00021643,2]
[372274225,1752570663187,-740.23,0.00021643,2]
[372274226,1752570663198,-460.0,0.00021643,2]
[372274227,1752570663207,-6066.63,0.00021643,2]
[372274228,1752570663217,-5988.09,0.00021643,2]
[372274229,1752570663227,-460.0,0.00021643,2]
[372274230,1752570663236,-460.0,0.00021643,2]
[372274231,1752570663246,-5429.84,0.00021643,2]
[372274232,1752570663255,-237.4209502,0.00021643,2]
[372274233,1752570663265,-709.59,0.00021643,2]
[372274234,1752570663274,-460.0,0.00021643,2]
[372274235,1752570663284,-736.32,0.00021643,2]
[372274236,1752570663294,-1557.24,0.00021643,2]
[372274237,1752570663303,-1895.77,0.00021643,2]
[372274238,1752570663313,-460.0,0.00021643,2]
[372274239,1752570663322,-4034.47,0.00021643,2]
[372274240,1752570663331,-656.87,0.00021643,2]
[372274241,1752570663341,-368.23,0.00021643,2]
[372274242,1752570663351,-460.0,0.00021643,2]
[372274243,1752570663360,-521.40262785,0.00021643,2]
[372274244,1752570663369,-813.36,0.00021643,2]
[372274245,1752570663378,-460.0,0.00021643,2]
[372274246,1752570663388,-684.57,0.00021643,2]
[372274247,1752570663397,-460.0,0.00021643,2]
[372274248,1752570663407,-6650.37,0.00021643,2]
[372274249,1752570663416,-460.0,0.00021643,2]
[372274250,1752570663426,-460.0,0.00021643,2]
[372274251,1752570663437,-486.7,0.00021643,2]
[372274252,1752570663446,-3397.01,0.00021643,2]
[372274253,1752570663457,-914.28,0.00021643,2]
[372274254,1752570663466,-460.0,0.00021643,2]
[372274255,1752570663475,-593.68,0.00021643,2]
[372274256,1752570663485,-541.55,0.00021643,2]
[372274257,1752570663494,-701.5,0.00021643,2]
[372274258,1752570663505,-460.0,0.00021643,2]
[372274259,1752570663514,-489.87,0.00021643,2]
[372274260,1752570663523,-460.0,0.00021643,2]
[372274261,1752570663533,-1182.25,0.00021643,2]
[372274262,1752570663542,-1976.96,0.00021643,2]
[372274263,1752570663552,-2295.41,0.00021643,2]
[372274264,1752570663562,-522.88,0.00021643,2]
[372274265,1752570663572,-460.0,0.00021643,2]
[372274266,1752570663581,-665.64,0.00021643,2]
[372274267,1752570663590,-460.0,0.00021643,2]
[372274268,1752570663599,-1499.53,0.00021643,2]
[372274269,1752570663609,-460.0,0.00021643,2]
[372274270,1752570663619,-460.0,0.00021643,2]
[372274271,1752570663629,-819.29,0.00021643,2]
[372274272,1752570663638,-460.0,0.00021643,2]
[372274273,1752570663647,-460.0,0.00021643,2]
[372274274,1752570663657,-500.0,0.00021644,2]
[372274275,1752570663667,-200.6701932,0.00021668,2]
[372274276,1752570663676,-10591.72515431,0.00021762,5]
[372274277,1752570663686,-3250.65755656,0.00021789,2]
[372274278,1752570663697,-136040.7906145,0.00021898,2]
[372274279,1752570663707,-3000.0,0.000219,2]
[372274280,1752570663718,-215.0738,0.00021906,2]
[372274281,1752570663728,-3000.0,0.0002191,2]
[372274282,1752570663738,-3000.0,0.00021912,2]
[372274283,1752570663747,-200.0,0.00021916,2]
[372274284,1752570663758,-460.0,0.00021917,2]
[372274285,1752570663768,-460.0,0.00021917,2]
[372274286,1752570663777,-518.56,0.00021917,2]
[372274287,1752570663788,-460.0,0.00021917,2]
[372274288,1752570663797,-460.0,0.00021917,2]
[372274289,1752570663806,-460.0,0.00021917,2]
[372274290,1752570663816,-929.48,0.00021917,2]
[372274291,1752570663826,-460.0,0.00021917,2]
[372274292,1752570663837,-460.0,0.00021917,2]
[372274293,1752570663848,-541.79,0.00021917,2]
[372274294,1752570663858,-460.0,0.00021917,2]
[372274295,1752570663867,-460.0,0.00021917,2]
[372274296,1752570663877,-460.0,0.00021917,2]
[372274297,1752570663887,-524.06,0.00021917,2]
[372274298,1752570663897,-734.04,0.00021917,2]
[372274299,1752570663908,-460.0,0.00021917,2]
[372274300,1752570663917,-542.32,0.00021917,2]
[372274301,1752570663927,-460.0,0.00021917,2]
[372274302,1752570663937,-804.19,0.00021917,2]
[372274303,1752570663947,-898.07,0.00021917,2]
[372274304,1752570663957,-303.08019544,0.00021917,2]
[372274305,1752570663967,-460.0,0.00021917,2]
[372274306,1752570663977,-161.60794482,0.00021917,2]
[372274307,1752570663991,-898.31,0.00021917,2]
[372274308,1752570664001,-460.0,0.00021917,2]
[372274309,1752570664012,-891.43,0.00021917,2]
[372274310,1752570664023,-460.0,0.00021917,2]
[372274311,1752570664032,-460.0,0.00021917,2]
[372274312,1752570664042,-460.0,0.00021917,2]
[372274313,1752570664052,-470.67,0.00021917,2]
[372274314,1752570664062,-471.48,0.00021917,2]
[372274315,1752570664072,-460.0,0.00021917,2]
[372274316,1752570664081,-460.0,0.00021917,2]
[372274317,1752570664090,-237.17240886,0.00021917,2]
[372274318,1752570664100,-460.0,0.00021917,2]
[372274319,1752570664110,-460.0,0.00021917,2]
[372274320,1752570664119,-460.0,0.00021917,2]
[372274321,1752570664129,-1355.61,0.00021917,2]
[372274322,1752570664139,-460.0,0.00021917,2]
[372274323,1752570664149,-460.0,0.00021917,2]
[372274324,1752570664159,-460.0,0.00021917,2]
[372274325,1752570664169,-669.96,0.00021917,2]
[372274326,1752570664178,-1420.46,0.00021917,2]
[372274327,1752570664188,-460.0,0.00021917,2]
[372274328,1752570664198,-460.0,0.00021917,2]
[372274329,1752570664208,-730.02,0.00021917,2]
[372274330,1752570664218,-460.0,0.00021917,2]
[372274331,1752570664227,-460.0,0.00021917,2]
[372274332,1752570664237,-2209.63,0.00021917,2]
[372274333,1752570664247,-862.35,0.00021917,2]
[372274334,1752570664257,-460.0,0.00021917,2]
[372274335,1752570664266,-460.0,0.00021917,2]
[372274336,1752570664277,-524.72,0.00021917,2]
[372274337,1752570664286,-460.0,0.00021917,2]
[372274338,1752570664296,-460.0,0.00021917,2]
[372274339,1752570664305,-460.0,0.00021917,2]
[372274340,1752570664315,-1241.48407561,0.00021917,2]
[372274341,1752570664448,-133.46592439,0.00021917,2]
[372274342,1752570664458,-1370.99,0.00021917,2]
[372274343,1752570664468,-460.0,0.00021917,2]
[372274344,1752570664478,-740.23,0.00021917,2]
[372274345,1752570664487,-342.06152639,0.00021917,2]
[372274346,1752570664510,-117.93847361,0.00021917,2]
[372274347,1752570664519,-417.60245587,0.00021917,2]
[372274348,1752570664590,-460.0,0.00020547,2]
[372274349,1752570664600,-572.26,0.00020821,2]
[372274350,1752570664609,-5649.02754413,0.00021917,2]
[372274351,1752570664618,-5988.09,0.00021917,2]
[372274352,1752570664628,-460.0,0.00021917,2]
[372274353,1752570664637,-460.0,0.00021917,2]
[372274354,1752570664647,-5429.84,0.00021917,2]
[372274355,1752570664656,-709.59,0.00021917,2]
[372274356,1752570664665,-470.49304686,0.00021917,2]
[372274357,1752570664675,-736.32,0.00021917,2]
[372274358,1752570664684,-1557.24,0.00021917,2]
[372274359,1752570664694,-887.13940902,0.00021917,2]
[372274360,1752570664706,-1008.63059098,0.00021917,2]
[372274361,1752570664716,-71.36940902,0.00021917,2]
[372274362,1752570664727,-300.0,0.00021917,2]
[372274363,1752570664913,-460.0,0.00019178,2]
[372274364,1752570664925,-454.93113408,0.00019452,2]
[372274365,1752570664936,-151.0,0.0001989,2]
[372274366,1752570664951,-151.0,0.00020537,2]
[372274367,1752570664961,-88.63059098,0.00021917,2]
[372274368,1752570664970,-4034.47,0.00021917,2]
[372274369,1752570664983,-656.87,0.00021917,2]
[372274370,1752570665103,-487.79274286,0.00021917,2]
[372274371,1752570665113,-813.36,0.00021917,2]
[372274372,1752570665123,-460.0,0.00021917,2]
[372274373,1752570665133,-684.57,0.00021917,2]
[372274374,1752570665142,-154.38994801,0.00021917,2]
[372274375,1752570665151,-6650.37,0.00021917,2]
[372274376,1752570665160,-450.68514663,0.00021917,2]
[372274377,1752570665170,-460.0,0.00021917,2]
[372274378,1752570665180,-486.7,0.00021917,2]
[372274379,1752570665189,-3397.01,0.00021917,2]
[372274380,1752570665200,-914.28,0.00021917,2]
[372274381,1752570665210,-460.0,0.00021917,2]
[372274382,1752570665219,-593.68,0.00021917,2]
[372274383,1752570665229,-541.55,0.00021917,2]
[372274384,1752570665239,-701.5,0.00021917,2]
[372274385,1752570665248,-369.58098645,0.00021917,2]
[372274386,1752570665257,-489.87,0.00021917,2]
[372274387,1752570665267,-460.0,0.00021917,2]
[372274388,1752570665276,-1182.25,0.00021917,2]
[372274389,1752570665285,-1976.96,0.00021917,2]
[372274390,1752570665295,-2295.41,0.00021917,2]
[372274391,1752570665305,-522.88,0.00021917,2]
[372274392,1752570665314,-665.64,0.00021917,2]
[372274393,1752570665323,-460.0,0.00021917,2]
[372274394,1752570665332,-460.0,0.00021917,2]
[372274395,1752570665342,-1499.53,0.00021917,2]
[372274396,1752570665351,-460.0,0.00021917,2]
[372274397,1752570665361,-460.0,0.00021917,2]
[372274398,1752570665371,-819.29,0.00021917,2]
[372274399,1752570665380,-460.0,0.00021917,2]
[372274400,1752570665389,-460.0,0.00021917,2]
[372274401,1752570665398,-1320.9897312,0.00021918,7]
[372274402,1752570665409,-500.0,0.00021918,2]
[372274403,1752570665418,-260.46263742,0.00021918,2]
[372274404,1752570665427,-483.76663457,0.00021918,7]
[372274405,1752570665437,-3000.0,0.0002192,2]
[372274406,1752570665449,-3000.0,0.0002193,2]
[372274407,1752570665459,-3000.0,0.0002194,2]
[372274408,1752570665469,-3000.0,0.0002195,2]
[372274409,1752570665478,-168.0,0.00021953,2]
[372274410,1752570665489,-3000.0,0.0002196,2]
[372274411,1752570665499,-3250.65755656,0.00021965,2]
[372274412,1752570665508,-10591.72515431,0.00021969,6]
[372274413,1752570665518,-3000.0,0.0002197,2]
[372274414,1752570665527,-3000.0,0.0002198,2]
[372274415,1752570665537,-4000.0,0.0002199,4]
[372274416,1752570665546,-3000.0,0.0002199,2]
[372274417,1752570665556,-3000.0,0.00022,2]
[372274418,1752570665565,-214.37129034,0.00022,7]
[372274419,1752570665574,-31720.09,0.00022,2]
[372274420,1752570665584,-160.0,0.00022,7]
[372274421,1752570665593,-31060.54,0.00022,7]
[372274422,1752570665602,-391.0,0.00022,2]
[372274423,1752570665612,-3000.0,0.0002201,2]
[372274424,1752570665622,-3000.0,0.0002202,2]
[372274425,1752570665631,-3000.0,0.0002203,2]
[372274426,1752570665641,-3000.0,0.0002204,2]
[372274427,1752570665651,-3000.0,0.0002205,2]
[372274428,1752570665661,-576.5770021,0.00022055,2]
[372274429,1752570665670,-944.858244,0.00022055,2]
[372274430,1752570665680,-3000.0,0.0002206,2]
[372274431,1752570665691,-1007.57266618,0.0002206,2]
[372274432,1752570665701,-3000.0,0.0002207,2]
[372274433,1752570665711,-3000.0,0.0002208,2]
[372274434,1752570665721,-3000.0,0.0002209,2]
[372274435,1752570665731,-3000.0,0.000221,2]
[372274436,1752570665740,-2639.01,0.000221,7]
[372274437,1752570665749,-6112.75,0.000221,7]
[372274438,1752570665759,-560.0,0.000221,2]
[372274439,1752570665769,-3000.0,0.0002211,2]
[372274440,1752570665779,-3000.0,0.0002212,2]
[372274441,1752570665788,-3000.0,0.0002213,2]
[372274442,1752570665798,-3000.0,0.0002214,2]
[372274443,1752570665808,-3000.0,0.0002215,2]
[372274444,1752570665818,-3000.0,0.0002216,2]
[372274445,1752570665827,-3000.0,0.0002217,2]
[372274446,1752570665837,-10591.72515431,0.00022176,6]
[372274447,1752570665847,-3000.0,0.0002218,2]
[372274448,1752570665856,-280.55485677,0.00022181,2]
[372274449,1752570665866,-25000.0,0.00022181,2]
[372274450,1752570665876,-3000.0,0.0002219,2]
[372274451,1752570665886,-247.08948301,0.0002219,2]
[372274452,1752570665896,-215.92228505,0.0002219,2]
[372274453,1752570665906,-460.0,0.00022191,2]
[372274454,1752570665916,-460.0,0.00022191,2]
[372274455,1752570665925,-518.56,0.00022191,2]
[372274456,1752570665935,-460.0,0.00022191,2]
[372274457,1752570665947,-460.0,0.00022191,2]
[372274458,1752570665957,-929.48,0.00022191,2]
[372274459,1752570665966,-460.0,0.00022191,2]
[372274460,1752570665976,-460.0,0.00022191,2]
[372274461,1752570665992,-541.79,0.00022191,2]
[372274462,1752570666002,-460.0,0.00022191,2]
[372274463,1752570666011,-449.38642602,0.00022191,2]
[372274464,1752570666023,-460.0,0.00022191,2]
[372274465,1752570666033,-524.06,0.00022191,2]
[372274466,1752570666043,-734.04,0.00022191,2]
[372274467,1752570666052,-460.0,0.00022191,2]
[372274468,1752570666063,-542.32,0.00022191,2]
[372274469,1752570666073,-460.0,0.00022191,2]
[372274470,1752570666082,-804.19,0.00022191,2]
[372274471,1752570666092,-898.07,0.00022191,2]
[372274472,1752570666102,-304.29283647,0.00022191,2]
[372274473,1752570666112,-898.31,0.00022191,2]
[372274474,1752570666122,-460.0,0.00022191,2]
[372274475,1752570666132,-891.43,0.00022191,2]
[372274476,1752570666142,-517.51736164,0.00022191,2]
[372274477,1752570666152,-460.0,0.00022191,2]
[372274478,1752570666162,-460.0,0.00022191,2]
[372274479,1752570666172,-470.67,0.00022191,2]
[372274480,1752570666183,-471.48,0.00022191,2]
[372274481,1752570666194,-460.0,0.00022191,2]
[372274482,1752570666203,-180.64230623,0.00022191,2]
[372274483,1752570666213,-460.0,0.00022191,2]
[372274484,1752570666224,-460.0,0.00022191,2]
[372274485,1752570666234,-460.0,0.00022191,2]
[372274486,1752570666243,-1355.61,0.00022191,2]
[372274487,1752570666253,-470.99375516,0.00022191,2]
[372274488,1752570666263,-460.0,0.00022191,2]
[372274489,1752570666273,-460.0,0.00022191,2]
[372274490,1752570666283,-669.96,0.00022191,2]
[372274491,1752570666293,-1420.46,0.00022191,2]
[372274492,1752570666303,-242.21955512,0.00022191,2]
[372274493,1752570666313,-460.0,0.00022191,2]
[372274494,1752570666322,-730.02,0.00022191,2]
[372274495,1752570666332,-460.0,0.00022191,2]
[372274496,1752570666343,-460.0,0.00022191,2]
[372274497,1752570666363,-2209.63,0.00022191,2]
[372274498,1752570666374,-862.35,0.00022191,2]
[372274499,1752570666384,-460.0,0.00022191,2]
[372274500,1752570666394,-460.0,0.00022191,2]
[372274501,1752570666404,-524.72,0.00022191,2]
[372274502,1752570666416,-460.0,0.00022191,2]
[372274503,1752570666425,-460.0,0.00022191,2]
[372274504,1752570666434,-1374.95,0.00022191,2]
[372274505,1752570666445,-460.0,0.00022191,2]
[372274506,1752570666454,-1370.99,0.00022191,2]
[372274507,1752570666464,-740.23,0.00022191,2]
[372274508,1752570666473,-460.0,0.00022191,2]
[372274509,1752570666482,-6066.63,0.00022191,2]
[372274510,1752570666492,-5988.09,0.00022191,2]
[372274511,1752570666501,-386.10994338,0.00022191,2]
[372274512,1752570666511,-460.0,0.00022191,2]
[372274513,1752570666521,-5429.84,0.00022191,2]
[372274514,1752570666530,-709.59,0.00022191,2]
[372274515,1752570666540,-736.32,0.00022191,2]
[372274516,1752570666551,-1557.24,0.00022191,2]
[372274517,1752570666560,-1895.77,0.00022191,2]
[372274518,1752570666570,-460.0,0.00022191,2]
[372274519,1752570666579,-4034.47,0.00022191,2]
[372274520,1752570666588,-656.87,0.00022191,2]
[372274521,1752570666599,-813.36,0.00022191,2]
[372274522,1752570666609,-460.0,0.00022191,2]
[372274523,1752570666618,-684.57,0.00022191,2]
[372274524,1752570666627,-6650.37,0.00022191,2]
[372274525,1752570666637,-460.0,0.00022191,2]
[372274526,1752570666647,-486.7,0.00022191,2]
[372274527,1752570666657,-3397.01,0.00022191,2]
[372274528,1752570666667,-914.28,0.00022191,2]
[372274529,1752570666676,-460.0,0.00022191,2]
[372274530,1752570666686,-593.68,0.00022191,2]
[372274531,1752570666697,-541.55,0.00022191,2]
[372274532,1752570666707,-701.5,0.00022191,2]
[372274533,1752570666716,-489.87,0.00022191,2]
[372274534,1752570666725,-460.0,0.00022191,2]
[372274535,1752570666735,-1182.25,0.00022191,2]
[372274536,1752570666744,-1976.96,0.00022191,2]
[372274537,1752570666754,-2295.41,0.00022191,2]
[372274538,1752570666764,-522.88,0.00022191,2]
[372274539,1752570666773,-665.64,0.00022191,2]
[372274540,1752570666783,-460.0,0.00022191,2]
[372274541,1752570666792,-460.0,0.00022191,2]
[372274542,1752570666802,-1499.53,0.00022191,2]
[372274543,1752570666811,-273.05601069,0.00022191,2]
[372274544,1752570666821,-460.0,0.00022191,2]
[372274545,1752570666830,-819.29,0.00022191,2]
[372274546,1752570666839,-460.0,0.00022191,2]
[372274547,1752570666848,-460.0,0.00022191,2]
[372274548,1752570666858,-391.0,0.00022192,7]
[372274549,1752570666867,-500.0,0.00022192,2]
[372274550,1752570666878,-3000.0,0.000222,2]
[372274551,1752570666887,-3000.0,0.0002221,2]
[372274552,1752570666897,-3000.0,0.0002222,2]
[372274553,1752570666906,-500.0,0.0002223,2]
[372274554,1752570666917,-5205.171163,0.0002223,2]
[372274555,1752570666927,-188.78,0.00022232,2]
[372274556,1752570666937,-587.0,0.00022319,2]
[372274557,1752570666949,-168.0,0.00022348,2]
[372274558,1752570666959,-10591.72515431,0.00022383,7]
[372274559,1752570666968,-3250.65755656,0.00022411,2]
[372274560,1752570666978,-150.05,0.00022419,2]
[372274561,1752570666991,-150.0,0.00022419,2]
[372274562,1752570667001,-647.0,0.00022419,2]
[372274563,1752570667010,-2155.0,0.00022419,2]
[372274564,1752570667021,-968.0,0.00022419,2]
[372274565,1752570667130,-1121.679804,0.0002246,2]
[372274566,1752570667141,-18287.24777126,0.00022465,2]
[372274567,1752570667152,-460.0,0.00022465,2]
[372274568,1752570667163,-460.0,0.00022465,2]
[372274569,1752570667173,-518.56,0.00022465,2]
[372274570,1752570667183,-460.0,0.00022465,2]
[372274571,1752570667196,-460.0,0.00022465,2]
[372274572,1752570667206,-929.48,0.00022465,2]
[372274573,1752570667216,-460.0,0.00022465,2]
[372274574,1752570667225,-460.0,0.00022465,2]
[372274575,1752570667236,-541.79,0.00022465,2]
[372274576,1752570667246,-460.0,0.00022465,2]
[372274577,1752570667256,-524.06,0.00022465,2]
[372274578,1752570667266,-734.04,0.00022465,2]
[372274579,1752570667275,-460.0,0.00022465,2]
[372274580,1752570667286,-542.32,0.00022465,2]
[372274581,1752570667296,-804.19,0.00022465,2]
[372274582,1752570667306,-898.07,0.00022465,2]
[372274583,1752570667317,-898.31,0.00022465,2]
[372274584,1752570667327,-460.0,0.00022465,2]
[372274585,1752570667336,-891.43,0.00022465,2]
[372274586,1752570667346,-460.0,0.00022465,2]
[372274587,1752570667356,-460.0,0.00022465,2]
[372274588,1752570667365,-470.67,0.00022465,2]
[372274589,1752570667375,-471.48,0.00022465,2]
[372274590,1752570667385,-460.0,0.00022465,2]
[372274591,1752570667395,-460.0,0.00022465,2]
[372274592,1752570667404,-460.0,0.00022465,2]
[372274593,1752570667414,-460.0,0.00022465,2]
[372274594,1752570667424,-1355.61,0.00022465,2]
[372274595,1752570667434,-460.0,0.00022465,2]
[372274596,1752570667446,-460.0,0.00022465,2]
[372274597,1752570667455,-669.96,0.00022465,2]
[372274598,1752570667465,-1420.46,0.00022465,2]
[372274599,1752570667474,-460.0,0.00022465,2]
[372274600,1752570667484,-730.02,0.00022465,2]
[372274601,1752570667494,-460.0,0.00022465,2]
[372274602,1752570667504,-460.0,0.00022465,2]
[372274603,1752570667514,-862.35,0.00022465,2]
[372274604,1752570667524,-2209.63,0.00022465,2]
[372274605,1752570667534,-460.0,0.00022465,2]
[372274606,1752570667543,-460.0,0.00022465,2]
[372274607,1752570667553,-524.72,0.00022465,2]
[372274608,1752570667563,-460.0,0.00022465,2]
[372274609,1752570667572,-460.0,0.00022465,2]
[372274610,1752570667582,-1374.95,0.00022465,2]
[372274611,1752570667592,-460.0,0.00022465,2]
[372274612,1752570667602,-1370.99,0.00022465,2]
[372274613,1752570667611,-740.23,0.00022465,2]
[372274614,1752570667621,-460.0,0.00022465,2]
[372274615,1752570667631,-6066.63,0.00022465,2]
[372274616,1752570667641,-5988.09,0.00022465,2]
[372274617,1752570667651,-460.0,0.00022465,2]
[372274618,1752570667661,-5429.84,0.00022465,2]
[372274619,1752570667671,-709.59,0.00022465,2]
[372274620,1752570667681,-736.32,0.00022465,2]
[372274621,1752570667694,-1557.24,0.00022465,2]
[372274622,1752570667703,-1895.77,0.00022465,2]
[372274623,1752570667713,-460.0,0.00022465,2]
[372274624,1752570667725,-4034.47,0.00022465,2]
[372274625,1752570667735,-656.87,0.00022465,2]
[372274626,1752570667745,-813.36,0.00022465,2]
[372274627,1752570667755,-460.0,0.00022465,2]
[372274628,1752570667765,-684.57,0.00022465,2]
[372274629,1752570667775,-6650.37,0.00022465,2]
[372274630,1752570667784,-474.28452548,0.00022465,2]
[372274631,1752570667797,-486.7,0.00022465,2]
[372274632,1752570667807,-3397.01,0.00022465,2]
[372274633,1752570667817,-914.28,0.00022465,2]
[372274634,1752570667827,-460.0,0.00022465,2]
[372274635,1752570667838,-593.68,0.00022465,2]
[372274636,1752570667849,-541.55,0.00022465,2]
[372274637,1752570667859,-701.5,0.00022465,2]
[372274638,1752570667869,-489.87,0.00022465,2]
[372274639,1752570667879,-460.0,0.00022465,2]
[372274640,1752570667889,-1182.25,0.00022465,2]
[372274641,1752570667899,-1976.96,0.00022465,2]
[372274642,1752570667908,-2295.41,0.00022465,2]
[372274643,1752570667919,-522.88,0.00022465,2]
[372274644,1752570667928,-665.64,0.00022465,2]
[372274645,1752570667938,-460.0,0.00022465,2]
[372274646,1752570667955,-460.0,0.00022465,2]